bitfinex/quotes_BTCUSD_20220201
["timestamp","ask_amount","ask_price","bid_price","bid_amount"]
[1643735173463,0.94750339,39079.0,39077.0,0.49916575]
[1643735173710,0.0549,39079.0,39077.0,0.49916575]
[1643735173912,0.22749724,39079.0,39077.0,0.49916575]
[1643735174111,0.0549,39079.0,39077.0,0.49916575]
[1643735174511,0.0549,39079.0,39077.0,0.4975]
[1643735174712,0.1549,39079.0,39077.0,0.4975]
[1643735175913,0.0549,39079.0,39077.0,0.4975]
[1643735176313,0.0049,39079.0,39077.0,0.4975]
[1643735176513,0.015153,39079.0,39077.0,0.4975]
[1643735176916,0.0049,39079.0,39077.0,0.4975]
[1643735178065,0.00041922,39070.0,39069.0,0.08989261]
[1643735178463,0.00531922,39070.0,39063.0,0.9381]
[1643735179060,0.28768866,39068.0,39063.0,0.9381]
[1643735179260,0.0049,39067.0,39063.0,0.9381]
[1643735179464,2.69181306,39066.0,39063.0,0.9381]
[1643735179661,0.0049,39065.0,39063.0,0.9381]
[1643735180463,0.1049,39065.0,39063.0,0.8606]
[1643735180666,0.0049,39065.0,39063.0,0.8606]
[1643735180865,0.0049,39065.0,39064.0,0.08554129]
[1643735181911,0.0049,39065.0,39064.0,0.23133834]
[1643735182109,0.0049,39065.0,39064.0,0.08554129]
[1643735182709,0.0049,39065.0,39063.0,0.86225575]
[1643735182911,0.0049,39065.0,39063.0,0.42]
[1643735183110,0.0049,39065.0,39063.0,0.38565575]
[1643735183111,0.83626794,39064.0,39063.0,0.38565575]
[1643735183313,0.84116794,39064.0,39063.0,0.38565575]
[1643735183512,0.94116794,39064.0,39063.0,0.38565575]
[1643735183713,0.89116794,39064.0,39063.0,0.38565575]
[1643735184113,0.90142394,39064.0,39063.0,0.384]
[1643735184316,0.015156,39064.0,39063.0,0.784]
[1643735184515,0.015156,39064.0,39063.0,0.384]
[1643735184713,0.00041922,39070.0,39064.0,1.4]
[1643735184979,0.20239217,39081.0,39067.0,1.4]
[1643735185168,0.20239217,39081.0,39068.0,0.28410168]
[1643735185169,0.16765941,39080.0,39068.0,0.28410168]
[1643735185368,0.010256,39081.0,39079.0,0.08653164]
[1643735187170,0.178028,39089.0,39080.0,0.27620137]
[1643735187171,0.05,39089.0,39080.0,0.27620137]
[1643735187371,0.064006,39091.0,39080.0,0.27620137]
[1643735188170,0.074256,39091.0,39083.0,0.2056962]
[1643735188370,0.074256,39091.0,39087.0,0.12564492]
[1643735188576,0.064006,39091.0,39088.0,0.0969739]
[1643735189205,0.06514352,39091.0,39088.0,0.0969739]
[1643735189606,0.06514352,39091.0,39080.0,0.25701719]
[1643735189805,0.06514352,39091.0,39081.0,0.15028236]
[1643735190007,0.06514352,39091.0,39074.0,0.26118778]
[1643735190306,0.06514352,39091.0,39070.0,0.128024]
[1643735190307,0.215547,39081.0,39077.0,0.064003]
[1643735190706,0.265547,39081.0,39078.0,0.09807685]
[1643735191608,0.26668452,39081.0,39078.0,0.09807685]
[1643735192309,0.064014,39080.0,39074.0,0.02172848]
[1643735192763,0.10113752,39081.0,39074.0,0.02172848]
[1643735192961,0.00113752,39081.0,39074.0,0.02172848]
[1643735193162,0.05113752,39081.0,39074.0,0.02172848]
[1643735193362,0.00113752,39081.0,39079.0,0.09320098]
[1643735193767,0.38227403,39082.0,39074.0,0.02172848]
[1643735193963,0.38341155,39082.0,39074.0,0.02172848]
[1643735194163,0.064015,39080.0,39074.0,0.02172848]
[1643735194365,0.064015,39080.0,39071.0,0.13835118]
[1643735194763,0.26425041,39076.0,39071.0,0.13835118]
[1643735194964,0.31425041,39076.0,39074.0,0.09506012]
[1643735195163,0.05,39076.0,39074.0,0.09506012]
[1643735195365,0.00113752,39077.0,39074.0,0.09506012]
[1643735196211,0.05,39076.0,39069.0,0.064015]
[1643735196416,0.05,39076.0,39069.0,0.00165707]
[1643735196417,0.064024,39075.0,39069.0,0.00165707]
[1643735197313,0.064024,39075.0,39065.0,0.4975]
[1643735197514,0.00113752,39074.0,39069.0,0.00165702]
[1643735198515,0.0045,39081.0,39069.0,0.00165702]
[1643735198516,0.064016,39080.0,39069.0,0.27366616]
[1643735198715,0.0011375,39074.0,39069.0,0.27532317]
[1643735198917,0.0011375,39074.0,39070.0,0.2235382]
[1643735199816,0.7709,39087.0,39070.0,0.2235382]
[1643735199817,0.27813186,39094.0,39071.0,0.60692633]
[1643735200061,0.010251,39083.0,39074.0,0.4975]
[1643735200262,0.064008,39085.0,39076.0,0.22129169]
[1643735200461,0.064008,39085.0,39077.0,0.28973592]
[1643735200760,0.064008,39085.0,39082.0,0.1524982]
[1643735201160,0.00113752,39083.0,39082.0,0.6024982]
[1643735202162,0.05,39090.0,39082.0,0.1474982]
[1643735202367,0.00113752,39084.0,39082.0,0.1474982]
[1643735203263,0.28643206,39091.0,39082.0,0.1474982]
[1643735203463,0.28643206,39091.0,39087.0,0.0948405]
[1643735203724,0.38643206,39091.0,39087.0,0.0948405]
[1643735203924,0.39668306,39091.0,39087.0,0.0948405]
[1643735204324,0.43643206,39091.0,39082.0,0.6449982]
[1643735204726,0.38756958,39091.0,39082.0,0.6449982]
[1643735205328,0.38756958,39091.0,39085.0,0.09646682]
[1643735205329,0.05,39089.0,39085.0,0.09646682]
[1643735205527,0.1,39090.0,39085.0,0.09646682]
[1643735205728,0.10113752,39091.0,39088.0,0.12864143]
[1643735205729,0.1,39091.0,39088.0,0.12864143]
[1643735206031,0.1,39091.0,39088.0,0.11597001]
[1643735206032,0.00113752,39089.0,39088.0,0.11597001]
[1643735207031,0.095,39091.0,39088.0,0.11597001]
[1643735207232,0.00113752,39090.0,39088.0,0.11597001]
[1643735207865,0.01025,39089.0,39088.0,0.11597001]
[1643735211222,0.01025,39089.0,39088.0,0.71597001]
[1643735211518,0.01025,39089.0,39088.0,0.11597001]
[1643735212119,0.01025,39089.0,39088.0,0.81597001]
[1643735212319,0.1,39098.0,39088.0,0.81597001]
[1643735212320,0.001,39108.0,39091.0,1.4]
[1643735212526,0.001,39120.0,39091.0,1.4]
[1643735212527,0.01335353,39111.0,39095.0,0.0467]
[1643735212724,0.01335353,39111.0,39110.0,1.66351115]
[1643735212922,0.051,39117.0,39111.0,0.20743524]
[1643735213121,0.051,39117.0,39112.0,0.347591]
[1643735213122,0.001,39117.0,39112.0,0.347591]
[1643735213922,0.21958407,39114.0,39111.0,0.20743524]
[1643735214122,0.001,39117.0,39111.0,0.20743524]
[1643735214323,0.001,39117.0,39112.0,0.02065224]
[1643735214975,0.33703524,39116.0,39112.0,0.02065224]
[1643735215571,0.05,39115.0,39112.0,0.02065224]
[1643735215768,1.72069115,39113.0,39112.0,0.02065224]
[1643735216169,0.05,39113.0,39112.0,0.02065224]
[1643735216370,0.41280735,39116.0,39112.0,0.02065224]
[1643735216570,0.41167267,39116.0,39112.0,0.02065224]
[1643735216771,0.00113468,39114.0,39112.0,0.02065224]
[1643735217173,0.00113468,39114.0,39109.0,0.063957]
[1643735217174,0.28651996,39114.0,39109.0,0.063957]
[1643735217570,0.33651996,39114.0,39109.0,0.063957]
[1643735217771,0.05,39114.0,39109.0,0.063957]
[1643735218073,0.09327945,39110.0,39109.0,0.06306624]
[1643735218270,0.09327945,39110.0,39108.0,0.127914]
[1643735218471,0.28094251,39109.0,39108.0,0.127914]
[1643735218742,0.28094251,39109.0,39097.0,1.3291]
[1643735218743,0.05,39107.0,39097.0,1.3291]
[1643735218927,0.05,39107.0,39093.0,1.2899]
[1643735218928,0.35151799,39106.0,39093.0,1.2899]
[1643735219127,0.35151799,39106.0,39093.0,0.7899]
[1643735219128,0.21532296,39100.0,39093.0,0.7899]
[1643735219328,0.0045,39099.0,39098.0,0.12795]
[1643735219932,0.0045,39099.0,39095.0,0.063987]
[1643735220330,0.05,39097.0,39095.0,0.063987]
[1643735220531,0.05,39097.0,39091.0,0.255843]
[1643735220831,0.09356117,39095.0,39091.0,0.255843]
[1643735221230,0.31062659,39097.0,39091.0,0.255843]
[1643735221231,0.05,39098.0,39091.0,0.255843]
[1643735221430,0.05,39098.0,39094.0,0.11259878]
[1643735221431,0.0045,39098.0,39094.0,0.11259878]
[1643735221632,0.00113468,39095.0,39094.0,0.11259878]
[1643735222030,0.00113468,39095.0,39094.0,0.71259878]
[1643735222470,0.21707292,39098.0,39094.0,0.71259878]
[1643735222471,0.21707292,39098.0,39094.0,0.11259878]
[1643735222664,0.21707292,39098.0,39093.0,0.063986]
[1643735222665,0.0045,39097.0,39093.0,0.063986]
[1643735222864,0.00113468,39096.0,39093.0,0.063986]
[1643735223065,0.00563468,39096.0,39093.0,0.053186]
[1643735223264,0.00113468,39096.0,39093.0,0.053186]
[1643735223464,0.0045,39095.0,39093.0,0.053186]
[1643735223864,0.05,39098.0,39093.0,0.053186]
[1643735224065,0.00113468,39096.0,39095.0,0.14924024]
[1643735224964,0.063981,39100.0,39095.0,0.59924024]
[1643735225166,0.00113468,39097.0,39093.0,0.053186]
[1643735225368,0.00113468,39097.0,39093.0,0.048186]
[1643735226213,0.063981,39100.0,39093.0,0.16796068]
[1643735226413,0.00113468,39097.0,39093.0,0.16796068]
[1643735226814,0.00113468,39097.0,39093.0,0.048186]
[1643735227418,0.063979,39103.0,39094.0,0.18358277]
[1643735227419,0.010247,39098.0,39094.0,0.18358277]
[1643735227614,0.063979,39103.0,39094.0,0.18358277]
[1643735227615,0.00113468,39097.0,39094.0,0.18358277]
[1643735227814,0.00113468,39097.0,39094.0,0.33125036]
[1643735228015,0.00113468,39097.0,39093.0,0.048186]
[1643735228515,0.05,39102.0,39093.0,0.048186]
[1643735228716,0.00113468,39097.0,39093.0,0.048186]
[1643735229318,0.0045,39096.0,39093.0,0.048186]
[1643735229972,0.00563468,39096.0,39093.0,0.048186]
[1643735230172,0.00113468,39096.0,39094.0,0.11163048]
[1643735231065,0.33741799,39104.0,39094.0,0.11163048]
[1643735231267,0.00113468,39097.0,39094.0,0.32100001]
[1643735231564,0.00113468,39097.0,39094.0,0.11163048]
[1643735231764,0.00113468,39097.0,39093.0,0.048186]
[1643735232166,0.0045,39098.0,39091.0,0.000309]
[1643735232167,0.05,39092.0,39091.0,0.000309]
[1643735232470,1.1040846,39092.0,39091.0,0.000309]
[1643735232665,1.2040846,39092.0,39091.0,0.000309]
[1643735232964,1.6040846,39092.0,39091.0,0.000309]
[1643735233365,4.40523294,39092.0,39091.0,0.000309]
[1643735234015,4.25523294,39092.0,39091.0,0.000309]
[1643735234216,3.85308889,39092.0,39091.0,0.000309]
[1643735234817,4.00308889,39092.0,39091.0,0.000309]
[1643735235221,4.10812702,39092.0,39091.0,0.000309]
[1643735235618,4.09787702,39092.0,39091.0,0.000309]
[1643735239365,0.2545,39092.0,39091.0,0.000309]
[1643735239565,0.05,39092.0,39091.0,0.000309]
[1643735240268,1.28003762,39092.0,39091.0,0.000309]
[1643735240465,1.38352448,39092.0,39091.0,0.000309]
[1643735240866,1.88352448,39092.0,39091.0,0.000309]
[1643735241316,2.03802448,39092.0,39091.0,0.000309]
[1643735241516,2.16603748,39092.0,39091.0,0.000309]
[1643735242616,1.71603748,39092.0,39091.0,0.000309]
[1643735243213,1.72628848,39092.0,39091.0,0.000309]
[1643735243413,1.71603748,39092.0,39091.0,0.000309]
[1643735243814,2.16603748,39092.0,39091.0,0.000309]
[1643735244016,1.71603748,39092.0,39091.0,0.000309]
[1643735244618,1.43249793,39092.0,39091.0,0.000309]
[1643735245475,1.43249793,39092.0,39070.0,0.00013188]
[1643735245476,0.05,39079.0,39070.0,0.00013188]
[1643735245667,0.05,39079.0,39076.0,0.00829214]
[1643735245668,0.34484014,39078.0,39076.0,0.00829214]
[1643735245865,0.30873607,39078.0,39076.0,0.00829214]
[1643735246065,1.5045,39077.0,39076.0,0.00829214]
[1643735246265,1.509,39077.0,39076.0,0.00829214]
[1643735246466,1.4,39076.0,39070.0,0.4406]
[1643735246666,0.05,39072.0,39070.0,0.4406]
[1643735247565,0.0045,39071.0,39070.0,0.4406]
[1643735248166,0.128058,39076.0,39070.0,0.4406]
[1643735248167,0.074272,39077.0,39070.0,0.4406]
[1643735248367,0.010254,39077.0,39076.0,0.14641089]
[1643735248567,0.010254,39077.0,39070.0,0.4406]
[1643735248814,0.010254,39077.0,39076.0,0.15630083]
[1643735249614,0.010254,39077.0,39076.0,0.27453242]
[1643735249814,0.005254,39077.0,39076.0,0.27453242]
[1643735250715,0.005254,39077.0,39076.0,0.62453242]
[1643735251715,0.005254,39077.0,39076.0,1.52453242]
[1643735251914,0.005254,39077.0,39076.0,0.62453242]
[1643735252666,0.05,39082.0,39076.0,0.62453242]
[1643735253068,0.064002,39086.0,39076.0,0.62453242]
[1643735253069,0.114002,39086.0,39076.0,0.62453242]
[1643735253266,0.05,39085.0,39084.0,0.12066839]
[1643735253868,0.1,39085.0,39084.0,0.12066839]
[1643735255572,0.1,39085.0,39084.0,0.0159641]
[1643735255769,0.05,39085.0,39084.0,0.0159641]
[1643735255970,0.05,39085.0,39083.0,0.08365581]
[1643735256216,0.05,39085.0,39078.0,0.064]
[1643735256416,0.11515476,39086.0,39078.0,0.064]
[1643735256616,0.11515476,39086.0,39078.0,0.28491934]
[1643735257016,0.11515476,39086.0,39083.0,0.27819219]
[1643735257416,0.114002,39086.0,39083.0,0.27819219]
[1643735257616,0.11515476,39086.0,39083.0,0.27819219]
[1643735258016,0.11515476,39086.0,39084.0,0.09222351]
[1643735258220,0.05,39085.0,39084.0,0.09222351]
[1643735258720,0.064001,39088.0,39085.0,1.4]
[1643735258921,0.010249,39091.0,39085.0,1.4]
[1643735259119,0.05,39098.0,39085.0,1.4471]
[1643735259319,0.05,39099.0,39085.0,1.4471]
[1643735259519,0.05,39099.0,39097.0,0.09244756]
[1643735259520,0.21949629,39098.0,39097.0,0.09244756]
[1643735259971,0.05,39099.0,39097.0,0.09244756]
[1643735260668,0.05,39099.0,39095.0,0.11272052]
[1643735260872,0.27419718,39098.0,39095.0,0.11272052]
[1643735261069,0.05,39096.0,39095.0,0.11272052]
[1643735261668,0.05,39097.0,39095.0,0.11272052]
[1643735262067,0.05,39096.0,39095.0,0.11272052]
[1643735262871,0.03972,39096.0,39095.0,0.11272052]
[1643735263070,0.00114724,39098.0,39095.0,0.11272052]
[1643735263271,0.03972,39096.0,39095.0,0.11272052]
[1643735263715,0.00114724,39098.0,39095.0,0.11272052]
[1643735264515,0.13972,39099.0,39095.0,0.11272052]
[1643735264815,0.13972,39099.0,39095.0,0.30833455]
[1643735264816,0.00114724,39098.0,39095.0,0.30833455]
[1643735265416,0.063978,39100.0,39095.0,0.57693046]
[1643735265717,0.001,39105.0,39096.0,1.747591]
[1643735265916,0.001,39105.0,39097.0,0.3436742]
[1643735266122,0.001,39105.0,39098.0,0.347591]
[1643735266315,0.001,39105.0,39099.0,0.3268112]
[1643735266521,0.046,39109.0,39105.0,0.4]
[1643735266717,0.001,39111.0,39110.0,0.13049977]
[1643735267018,0.03972,39107.0,39092.0,0.2302]
[1643735267216,0.001,39111.0,39095.0,0.2791212]
[1643735267217,0.04072,39111.0,39095.0,0.2791212]
[1643735267471,0.03972,39108.0,39095.0,0.2791212]
[1643735267963,0.001,39111.0,39107.0,0.13402123]
[1643735267964,0.063961,39110.0,39107.0,0.13402123]
[1643735268166,0.04072,39111.0,39107.0,0.13402123]
[1643735268167,0.001,39111.0,39107.0,0.13402123]
[1643735268365,0.00068,39111.0,39107.0,0.13402123]
[1643735268566,0.00229987,39109.0,39107.0,0.13402123]
[1643735268964,0.00229987,39109.0,39108.0,0.69790328]
[1643735269467,0.00068,39111.0,39108.0,0.78611046]
[1643735269666,0.00114437,39110.0,39108.0,0.28601046]
[1643735270367,0.00114437,39110.0,39108.0,0.5502092]
[1643735270566,0.00068,39111.0,39108.0,0.28601046]
[1643735270765,0.00182437,39111.0,39109.0,0.26011374]
[1643735270970,0.00182437,39111.0,39110.0,0.81530736]
[1643735271222,0.00657681,39117.0,39111.0,0.5]
[1643735271440,0.00657681,39117.0,39112.0,0.29567644]
[1643735271822,0.013,39119.0,39114.0,1.25]
[1643735272027,0.001,39122.0,39116.0,1.4]
[1643735272224,0.001,39122.0,39117.0,0.09954786]
[1643735272826,0.001,39122.0,39121.0,0.13096098]
[1643735274329,0.060937,39123.0,39122.0,1.0]
[1643735274530,0.002,39125.0,39122.0,1.0]
[1643735275169,0.002,39125.0,39121.0,0.13096098]
[1643735275369,0.002,39125.0,39122.0,0.2242414]
[1643735275568,0.00314151,39125.0,39122.0,0.2242414]
[1643735275769,0.00314151,39125.0,39123.0,1.00392168]
[1643735276170,0.00314151,39125.0,39123.0,1.05102168]
[1643735276571,0.002,39125.0,39123.0,1.05102168]
[1643735276771,0.002,39125.0,39124.0,0.7]
[1643735276772,0.00114151,39125.0,39124.0,0.7]
[1643735277071,0.002,39127.0,39125.0,0.85]
[1643735277274,0.063916,39135.0,39127.0,0.8]
[1643735277471,0.063916,39135.0,39128.0,0.7971]
[1643735277671,0.09072,39136.0,39135.0,0.11199152]
[1643735277672,0.04072,39136.0,39135.0,0.11199152]
[1643735278370,0.04072,39136.0,39131.0,0.01914997]
[1643735278371,1.14072,39136.0,39131.0,0.01914997]
[1643735278573,0.03972,39132.0,39131.0,0.01914997]
[1643735279420,2.63868251,39132.0,39131.0,0.01914997]
[1643735279621,2.68868251,39132.0,39131.0,0.01914997]
[1643735279821,2.86132403,39132.0,39131.0,0.01914997]
[1643735280021,2.92423122,39132.0,39131.0,0.01914997]
[1643735280223,2.92423122,39132.0,39118.0,0.27883942]
[1643735280224,0.06394,39129.0,39118.0,0.27883942]
[1643735280420,0.06844,39129.0,39120.0,0.12538057]
[1643735280621,0.11844,39129.0,39120.0,0.12538057]
[1643735280823,0.03972,39123.0,39120.0,0.12538057]
[1643735281620,0.1,39126.0,39120.0,0.12703488]
[1643735281822,0.163942,39127.0,39120.0,0.12703488]
[1643735282021,0.063942,39127.0,39120.0,0.12703488]
[1643735282220,0.063939,39123.0,39120.0,0.12703488]
[1643735282483,0.063939,39123.0,39120.0,0.12498928]
[1643735282484,0.03972,39121.0,39120.0,0.12498928]
[1643735282677,0.03972,39121.0,39112.0,0.33927187]
[1643735282878,0.03972,39121.0,39120.0,0.00165431]
[1643735283477,0.08972,39121.0,39120.0,0.00165431]
[1643735283879,0.13972,39121.0,39119.0,0.135313]
[1643735284079,0.191825,39123.0,39119.0,0.13696734]
[1643735284282,0.063938,39122.0,39119.0,0.13696734]
[1643735285082,0.063938,39122.0,39119.0,0.135313]
[1643735285283,0.063938,39122.0,39119.0,0.00146937]
[1643735285484,0.03972,39120.0,39119.0,0.00146937]
[1643735286325,0.03972,39120.0,39118.0,0.00146939]
[1643735286526,0.33402528,39120.0,39118.0,0.00146939]
[1643735287325,0.33402528,39120.0,39107.0,1.86675957]
[1643735287526,0.063943,39118.0,39117.0,0.0014694]
[1643735287726,0.103663,39118.0,39117.0,0.0014694]
[1643735288525,0.103663,39118.0,39114.0,0.11438237]
[1643735288726,0.103663,39118.0,39116.0,0.00149025]
[1643735288927,0.063943,39118.0,39116.0,0.00149025]
[1643735289125,0.103663,39118.0,39116.0,0.00149025]
[1643735289727,0.103663,39118.0,39114.0,0.11438237]
[1643735289971,0.063943,39118.0,39115.0,0.00149026]
[1643735290166,0.03972,39116.0,39115.0,0.00149026]
[1643735290566,0.103663,39118.0,39115.0,0.00149026]
[1643735290765,0.063943,39118.0,39115.0,0.00149026]
[1643735290968,0.05,39126.0,39115.0,0.25681423]
[1643735291168,0.05,39126.0,39115.0,0.2583045]
[1643735291368,0.03972,39128.0,39115.0,0.2583045]
[1643735291567,0.2299734,39125.0,39119.0,0.16791559]
[1643735291768,0.2939044,39125.0,39119.0,0.16791559]
[1643735291967,0.063931,39125.0,39124.0,0.08758934]
[1643735292170,0.127861,39129.0,39128.0,0.1276554]
[1643735292481,0.127861,39129.0,39124.0,0.08758934]
[1643735292669,0.05,39128.0,39120.0,0.00092413]
[1643735292867,0.127861,39129.0,39120.0,0.00092413]
[1643735292868,0.28140771,39125.0,39120.0,0.00092413]
[1643735293069,0.063938,39125.0,39120.0,0.00092413]
[1643735293269,0.113938,39125.0,39120.0,0.00092413]
[1643735293471,0.113938,39125.0,39123.0,0.12179028]
[1643735293718,0.113938,39125.0,39123.0,0.10148476]
[1643735294819,0.113938,39125.0,39123.0,0.2126907]
[1643735295422,0.03972,39130.0,39123.0,0.2126907]
[1643735295622,0.001,39136.0,39126.0,0.20997758]
[1643735295623,0.03972,39135.0,39126.0,0.20997758]
[1643735296021,0.2556896,39135.0,39134.0,0.23633679]
[1643735296222,0.2556896,39135.0,39134.0,0.10431853]
[1643735296624,0.03972,39135.0,39134.0,0.10431853]
[1643735297674,0.29014166,39135.0,39131.0,0.13026712]
[1643735297871,0.03972,39133.0,39129.0,0.00154999]
[1643735298070,0.063927,39133.0,39129.0,0.00154999]
[1643735298271,0.03972,39130.0,39121.0,0.34327009]
[1643735298469,0.03972,39130.0,39129.0,0.00154994]
[1643735298869,0.06505163,39133.0,39129.0,0.12080814]
[1643735299071,0.10477163,39133.0,39129.0,0.12080814]
[1643735299270,0.06505163,39133.0,39129.0,0.00154994]
[1643735299471,0.03972,39130.0,39128.0,0.07917037]
[1643735299671,0.03972,39130.0,39129.0,0.00147951]
[1643735299873,0.05,39132.0,39129.0,0.00147951]
[1643735300074,0.06505163,39133.0,39129.0,0.00147951]
[1643735300278,0.11505163,39133.0,39129.0,0.15390974]
[1643735300677,0.11505163,39133.0,39129.0,0.15243023]
[1643735300678,0.113927,39133.0,39129.0,0.15243023]
[1643735300877,0.11505163,39133.0,39129.0,0.15390974]
[1643735301076,0.03972,39130.0,39129.0,0.00147951]
[1643735301331,1.43972,39130.0,39129.0,0.00147951]
[1643735301529,1.44422,39130.0,39129.0,0.00147951]
[1643735301833,1.76668557,39130.0,39124.0,0.0189841]
[1643735302027,1.563949,39129.0,39128.0,0.00147954]
[1643735302229,2.00631278,39129.0,39128.0,7.954e-05]
[1643735303027,2.00631278,39129.0,39120.0,0.10146238]
[1643735303229,0.03972,39121.0,39120.0,0.10146238]
[1643735303427,0.03972,39121.0,39118.0,0.12338873]
[1643735303627,0.03972,39119.0,39118.0,0.12338873]
[1643735304229,0.03972,39119.0,39109.0,0.127876]
[1643735304427,0.03972,39119.0,39112.0,0.07375559]
[1643735304428,0.103669,39119.0,39112.0,0.07375559]
[1643735304627,0.063949,39119.0,39112.0,0.07375559]
[1643735304828,0.03972,39117.0,39112.0,0.07375559]
[1643735305272,0.03972,39117.0,39109.0,0.15011033]
[1643735305478,0.03972,39117.0,39109.0,0.27529519]
[1643735306074,0.06395,39115.0,39109.0,0.27529519]
[1643735306674,0.11395,39115.0,39110.0,0.0903981]
[1643735306875,0.11395,39115.0,39110.0,0.09205076]
[1643735307875,0.10895,39115.0,39110.0,0.08994256]
[1643735308078,0.10895,39115.0,39111.0,0.00165265]
[1643735309122,0.10895,39115.0,39110.0,0.08994256]
[1643735309323,0.10895,39115.0,39111.0,0.00165263]
[1643735310224,0.10895,39115.0,39109.0,0.27529519]
[1643735310424,0.10895,39115.0,39111.0,0.00165263]
[1643735311123,0.03972,39112.0,39111.0,0.00165263]
[1643735311525,0.10090763,39113.0,39107.0,0.4975]
[1643735311526,0.063963,39111.0,39107.0,0.4975]
[1643735311726,0.03972,39108.0,39107.0,0.4975]
[1643735314677,0.03972,39117.0,39107.0,0.76545977]
[1643735314874,0.03972,39119.0,39107.0,0.76545977]
[1643735315075,0.03972,39119.0,39116.0,0.13532168]
[1643735315377,0.01335353,39123.0,39116.0,0.13532168]
[1643735316419,0.01335353,39123.0,39116.0,0.15499619]
[1643735317020,0.01335353,39123.0,39118.0,0.00165245]
[1643735317420,0.01335353,39123.0,39119.0,0.10176997]
[1643735318320,0.07729453,39123.0,39119.0,0.10176997]
[1643735318920,0.07729453,39123.0,39119.0,0.10311453]
[1643735319523,0.07729453,39123.0,39122.0,0.41225328]
[1643735319725,0.07729453,39123.0,39122.0,0.11225328]
[1643735319977,0.01335353,39123.0,39122.0,0.41225328]
[1643735320175,0.03972,39125.0,39123.0,0.45]
[1643735320379,0.0098,39130.0,39124.0,0.26270362]
[1643735320576,0.03972,39129.0,39128.0,0.13184314]
[1643735320874,0.0098,39130.0,39128.0,0.13184314]
[1643735321474,0.0098,39130.0,39127.0,0.07712028]
[1643735321674,0.03972,39129.0,39127.0,0.07712028]
[1643735321875,0.26754856,39129.0,39126.0,0.0013444]
[1643735322276,0.103652,39127.0,39119.0,0.30359443]
[1643735322477,0.103652,39127.0,39126.0,0.00165223]
[1643735322678,0.153652,39127.0,39126.0,0.00165223]
[1643735323480,0.153652,39127.0,39125.0,0.08662345]
[1643735323724,0.153652,39127.0,39125.0,0.08827571]
[1643735324120,0.113932,39127.0,39125.0,0.08827571]
[1643735324719,0.113932,39127.0,39125.0,0.08662345]
[1643735325122,0.153652,39127.0,39125.0,0.08662345]
[1643735325723,0.03972,39127.0,39125.0,0.08662345]
[1643735326125,0.03972,39127.0,39124.0,0.00165227]
[1643735326427,0.0098,39130.0,39124.0,0.00165227]
[1643735326623,0.03972,39125.0,39124.0,0.00029631]
[1643735327026,0.03972,39125.0,39121.0,0.02187742]
[1643735327475,0.03972,39125.0,39122.0,0.10486326]
[1643735327671,0.03972,39126.0,39122.0,0.10486326]
[1643735328571,0.03972,39126.0,39122.0,0.05486326]
[1643735328770,0.03972,39126.0,39118.0,0.127852]
[1643735328979,0.03972,39126.0,39114.0,0.4975]
[1643735328980,0.03972,39119.0,39114.0,0.4975]
[1643735329173,0.03972,39119.0,39109.0,0.30687]
[1643735329174,0.0045,39118.0,39109.0,0.08087]
[1643735329378,0.27054634,39125.0,39109.0,0.08087]
[1643735329379,0.0045,39117.0,39109.0,0.08087]
[1643735329571,0.04422,39116.0,39115.0,0.00165084]
[1643735329772,0.39422,39116.0,39115.0,0.00165084]
[1643735329972,0.61005204,39116.0,39115.0,0.00165084]
[1643735330173,0.67400304,39116.0,39115.0,0.00165084]
[1643735330376,0.77400304,39116.0,39115.0,0.00165084]
[1643735330573,0.87400304,39116.0,39109.0,0.57837]
[1643735330775,0.73428304,39116.0,39114.0,0.00165087]
[1643735331421,0.03972,39115.0,39114.0,0.00165087]
[1643735331624,0.04422,39115.0,39114.0,0.00165087]
[1643735331821,0.09422,39115.0,39110.0,0.12922299]
[1643735332023,0.03972,39111.0,39110.0,0.12922299]
[1643735332223,0.0545,39115.0,39110.0,0.12922299]
[1643735332624,0.03972,39112.0,39110.0,0.12922299]
[1643735332824,0.0045,39115.0,39110.0,0.12922299]
[1643735333023,0.0045,39115.0,39110.0,0.32481445]
[1643735333824,0.0045,39115.0,39110.0,0.12922299]
[1643735333825,0.03972,39111.0,39110.0,0.12922299]
[1643735334327,0.063956,39112.0,39109.0,0.4975]
[1643735334525,0.25139116,39116.0,39109.0,0.49915101]
[1643735334724,0.29111116,39116.0,39109.0,0.49915101]
[1643735334979,0.25139116,39116.0,39109.0,0.49915101]
[1643735335372,0.03972,39110.0,39109.0,0.4975]
[1643735335774,0.127914,39114.0,39109.0,0.4975]
[1643735335975,0.0045,39115.0,39109.0,0.4975]
[1643735336373,0.068448,39115.0,39112.0,0.15106972]
[1643735336775,0.068448,39115.0,39112.0,0.15272064]
[1643735336975,0.068448,39115.0,39113.0,0.09644888]
[1643735338173,0.068448,39115.0,39112.0,0.34269015]
[1643735338373,0.03972,39114.0,39112.0,0.34269015]
[1643735338574,0.063948,39115.0,39112.0,0.34269015]
[1643735339030,0.063948,39115.0,39112.0,0.34103924]
[1643735339232,0.063948,39115.0,39112.0,0.34269016]
[1643735339433,0.113948,39115.0,39112.0,0.15272064]
[1643735339634,0.03972,39114.0,39112.0,0.15272064]
[1643735339833,0.063948,39115.0,39112.0,0.15272064]
[1643735340233,0.063948,39115.0,39112.0,0.15106972]
[1643735340435,0.063948,39115.0,39112.0,0.15272064]
[1643735341532,0.063948,39115.0,39112.0,0.15106972]
[1643735341735,0.063948,39115.0,39112.0,0.00109117]
[1643735342576,0.03972,39114.0,39109.0,0.4975]
[1643735342775,0.03972,39114.0,39112.0,0.1223856]
[1643735342972,0.063948,39115.0,39112.0,0.1223856]
[1643735343173,0.03972,39114.0,39112.0,0.1223856]
[1643735343375,0.1279,39115.0,39112.0,0.21642908]
[1643735343573,0.063948,39115.0,39112.0,0.21642908]
[1643735343774,0.063948,39115.0,39112.0,0.21517509]
[1643735343974,0.063948,39115.0,39112.0,0.21683207]
[1643735344174,0.03972,39114.0,39112.0,0.21683207]
[1643735344576,0.063948,39115.0,39112.0,0.21683207]
[1643735344577,0.063948,39115.0,39112.0,0.12278859]
[1643735344778,0.03972,39114.0,39112.0,0.00165698]
[1643735344977,0.063948,39115.0,39109.0,0.65807367]